[Event "Titled Tuesday Blitz January 25 2022"]
[White "Okike, David"]
[Black "Szpar, Milosz"]
[WhiteFideId "8500134"]
[BlackFideId "1184989"]
[WhiteElo "2232"]
[BlackElo "2447"]
[Result "0-1"]
[Round "02"]
[TimeControl "180+1"]
[Date "2022.01.26"]
[WhiteClock "0:00:04"]
[BlackClock "0:00:05"]

1. e4 {[%clk 0:03:00]}  c5 {[%clk 0:02:53]} 2. Nf3 {[%clk 0:02:59]}  d6 {[%clk 0:02:47]} 3. d4 {[%clk 0:02:57]}  cxd4 {[%clk 0:02:45]} 4. Nxd4 {[%clk 0:02:57]}  Nf6 {[%clk 0:02:45]} 5. Nc3 {[%clk 0:02:52]}  Nc6 {[%clk 0:02:44]} 6. Bg5 {[%clk 0:02:45]}  e6 {[%clk 0:02:36]} 7. f3 {[%clk 0:02:43]}  Qb6 {[%clk 0:02:34]} 8. Nb3 {[%clk 0:02:37]}  Be7 {[%clk 0:02:30]} 9. Qd2 {[%clk 0:02:36]}  O-O {[%clk 0:02:28]} 10. O-O-O {[%clk 0:02:30]}  a6 {[%clk 0:02:27]} 11. h4 {[%clk 0:02:30]}  Qc7 {[%clk 0:02:24]} 12. h5 {[%clk 0:02:26]}  Rd8 {[%clk 0:02:08]} 13. h6 {[%clk 0:02:25]}  g6 {[%clk 0:02:08]} 14. Qf4 {[%clk 0:02:21]}  Ne8 {[%clk 0:02:07]} 15. Bxe7 {[%clk 0:02:17]}  Qxe7 {[%clk 0:02:07]} 16. g4 {[%clk 0:02:16]}  Qf6 {[%clk 0:02:04]} 17. Qg3 {[%clk 0:02:09]}  g5 {[%clk 0:01:55]} 18. Rh5 {[%clk 0:02:04]}  Kf8 {[%clk 0:01:31]} 19. Bd3 {[%clk 0:01:45]}  Ne5 {[%clk 0:01:30]} 20. Nd2 {[%clk 0:01:34]}  b5 {[%clk 0:01:28]} 21. Ne2 {[%clk 0:01:22]}  Bb7 {[%clk 0:01:05]} 22. f4 {[%clk 0:01:19]}  gxf4 {[%clk 0:01:05]} 23. Nxf4 {[%clk 0:01:18]}  Rac8 {[%clk 0:01:06]} 24. Kb1 {[%clk 0:01:18]}  Ke7 {[%clk 0:00:52]} 25. g5 {[%clk 0:01:17]}  Qh8 {[%clk 0:00:51]} 26. Rhh1 {[%clk 0:01:14]}  Kd7 {[%clk 0:00:40]} 27. Rhf1 {[%clk 0:01:12]}  Kc7 {[%clk 0:00:39]} 28. Nf3 {[%clk 0:01:12]}  Kb8 {[%clk 0:00:38]} 29. Ne2 {[%clk 0:01:09]}  Nc4 {[%clk 0:00:35]} 30. Bxc4 {[%clk 0:01:09]}  Rxc4 {[%clk 0:00:36]} 31. Nfd4 {[%clk 0:01:01]}  Bxe4 {[%clk 0:00:35]} 32. Rxf7 {[%clk 0:00:55]}  Bg6 {[%clk 0:00:35]} 33. Rf2 {[%clk 0:00:39]}  Rdc8 {[%clk 0:00:33]} 34. Rd2 {[%clk 0:00:35]}  Qe5 {[%clk 0:00:32]} 35. Qf3 {[%clk 0:00:32]}  d5 {[%clk 0:00:22]} 36. b3 {[%clk 0:00:24]}  R4c7 {[%clk 0:00:18]} 37. Kb2 {[%clk 0:00:20]}  Nd6 {[%clk 0:00:17]} 38. Ng3 {[%clk 0:00:15]}  Rxc2+ {[%clk 0:00:13]} 39. Rxc2 {[%clk 0:00:14]}  Qxd4+ {[%clk 0:00:13]} 40. Kb1 {[%clk 0:00:10]}  Rxc2 {[%clk 0:00:04]} 41. Rxc2 {[%clk 0:00:10]}  Kb7 {[%clk 0:00:04]} 42. Ne2 {[%clk 0:00:08]}  Qd1+ {[%clk 0:00:04]} 43. Kb2 {[%clk 0:00:04]}  Qxc2+ {[%clk 0:00:05]} 44. Ka1 {[%clk 0:00:04]}  Qb1# {[%clk 0:00:05]} 0-1


[Site "https://www.chess.com"]

[Event "Titled Tuesday Blitz January 25 2022"]
[White "Petesch, Gabriel"]
[Black "Shevchenko, Kirill"]
[WhiteFideId "2032465"]
[BlackFideId "14129574"]
[WhiteElo "2374"]
[BlackElo "2624"]
[Result "0-1"]
[Round "02"]
[TimeControl "180+1"]
[Date "2022.01.26"]
[WhiteClock "0:00:02"]
[BlackClock "0:01:03"]

1. e3 {[%clk 0:02:58]}  Nf6 {[%clk 0:02:58]} 2. Nf3 {[%clk 0:02:57]}  c5 {[%clk 0:02:56]} 3. d4 {[%clk 0:02:56]}  e6 {[%clk 0:02:55]} 4. c4 {[%clk 0:02:54]}  d5 {[%clk 0:02:50]} 5. Nc3 {[%clk 0:02:52]}  a6 {[%clk 0:02:50]} 6. Be2 {[%clk 0:02:49]}  dxc4 {[%clk 0:02:50]} 7. Bxc4 {[%clk 0:02:40]}  b5 {[%clk 0:02:50]} 8. Be2 {[%clk 0:02:40]}  Bb7 {[%clk 0:02:50]} 9. O-O {[%clk 0:02:40]}  Nbd7 {[%clk 0:02:51]} 10. a4 {[%clk 0:02:37]}  b4 {[%clk 0:02:50]} 11. Nb1 {[%clk 0:02:37]}  Rc8 {[%clk 0:02:30]} 12. Nbd2 {[%clk 0:02:35]}  Be7 {[%clk 0:02:26]} 13. b3 {[%clk 0:02:33]}  Nd5 {[%clk 0:02:22]} 14. Bb2 {[%clk 0:02:30]}  O-O {[%clk 0:02:19]} 15. Rc1 {[%clk 0:02:28]}  cxd4 {[%clk 0:02:09]} 16. Nxd4 {[%clk 0:02:07]}  Nc3 {[%clk 0:01:52]} 17. Bxc3 {[%clk 0:02:00]}  bxc3 {[%clk 0:01:53]} 18. Nc4 {[%clk 0:01:59]}  Bb4 {[%clk 0:01:39]} 19. Bf3 {[%clk 0:01:33]}  Bxf3 {[%clk 0:01:29]} 20. Qxf3 {[%clk 0:01:32]}  Qc7 {[%clk 0:01:17]} 21. Rfd1 {[%clk 0:01:03]}  Nc5 {[%clk 0:01:15]} 22. Qg4 {[%clk 0:00:23]}  f5 {[%clk 0:01:11]} 23. Qh3 {[%clk 0:00:21]}  Rfe8 {[%clk 0:01:10]} 24. a5 {[%clk 0:00:09]}  Nxb3 {[%clk 0:01:05]} 25. Nb6 {[%clk 0:00:02]}  Nxc1 {[%clk 0:01:04]} 26. Rxc1 {[%clk 0:00:03]}  Rcd8 {[%clk 0:01:03]} 27. Nc4 {[%clk 0:00:02]}  Qxc4 {[%clk 0:01:03]} 0-1


[Site "https://www.chess.com"]

[Event "Titled Tuesday Blitz January 25 2022"]
[White "Piesik, Piotr"]
[Black "Svane, Frederik"]
[WhiteFideId "1136194"]
[BlackFideId "12923044"]
[WhiteElo "2232"]
[BlackElo "2459"]
[Result "0-1"]
[Round "02"]
[TimeControl "180+1"]
[Date "2022.01.26"]
[WhiteClock "0:01:11"]
[BlackClock "0:00:04"]

1. Nf3 {[%clk 0:02:56]}  Nf6 {[%clk 0:02:59]} 2. g3 {[%clk 0:02:54]}  e6 {[%clk 0:02:59]} 3. Bg2 {[%clk 0:02:52]}  d5 {[%clk 0:02:59]} 4. O-O {[%clk 0:02:52]}  Be7 {[%clk 0:02:59]} 5. d3 {[%clk 0:02:53]}  c5 {[%clk 0:02:58]} 6. Nbd2 {[%clk 0:02:54]}  Nc6 {[%clk 0:02:58]} 7. e4 {[%clk 0:02:54]}  O-O {[%clk 0:02:26]} 8. Re1 {[%clk 0:02:54]}  a5 {[%clk 0:02:26]} 9. e5 {[%clk 0:02:52]}  Nd7 {[%clk 0:02:26]} 10. c3 {[%clk 0:02:53]}  a4 {[%clk 0:02:26]} 11. a3 {[%clk 0:02:50]}  b5 {[%clk 0:02:24]} 12. h4 {[%clk 0:02:51]}  Qa5 {[%clk 0:02:10]} 13. h5 {[%clk 0:02:49]}  h6 {[%clk 0:02:10]} 14. Nf1 {[%clk 0:02:47]}  b4 {[%clk 0:02:11]} 15. Bd2 {[%clk 0:02:42]}  bxc3 {[%clk 0:02:10]} 16. bxc3 {[%clk 0:02:42]}  Qb5 {[%clk 0:02:03]} 17. Bf4 {[%clk 0:02:15]}  Rb8 {[%clk 0:01:19]} 18. N1h2 {[%clk 0:02:10]}  Qb2 {[%clk 0:00:46]} 19. Bd2 {[%clk 0:02:03]}  Ba6 {[%clk 0:00:29]} 20. Bf1 {[%clk 0:01:55]}  Rfe8 {[%clk 0:00:19]} 21. Ng4 {[%clk 0:01:54]}  Bf8 {[%clk 0:00:19]} 22. c4 {[%clk 0:01:49]}  dxc4 {[%clk 0:00:14]} 23. dxc4 {[%clk 0:01:49]}  Qb3 {[%clk 0:00:15]} 24. Qe2 {[%clk 0:01:46]}  Nd4 {[%clk 0:00:07]} 25. Nxd4 {[%clk 0:01:45]}  cxd4 {[%clk 0:00:07]} 26. Qe4 {[%clk 0:01:15]}  Bb7 {[%clk 0:00:04]} 27. Qxd4 {[%clk 0:01:11]}  Qf3 {[%clk 0:00:04]} 0-1


[Site "https://www.chess.com"]

[Event "Titled Tuesday Blitz January 25 2022"]
[White "Risteski, Emil"]
[Black "Priasmoro, Novendra"]
[WhiteFideId "15005267"]
[BlackFideId "7105029"]
[WhiteElo "2070"]
[BlackElo "2309"]
[Result "0-1"]
[Round "02"]
[TimeControl "180+1"]
[Date "2022.01.26"]
[WhiteClock "0:00:07"]
[BlackClock "0:00:24"]

1. e4 {[%clk 0:03:00]}  c5 {[%clk 0:02:59]} 2. Be2 {[%clk 0:03:00]}  Nc6 {[%clk 0:03:00]} 3. d3 {[%clk 0:03:00]}  g6 {[%clk 0:03:00]} 4. f4 {[%clk 0:03:00]}  Bg7 {[%clk 0:03:00]} 5. Nf3 {[%clk 0:03:01]}  e6 {[%clk 0:03:01]} 6. O-O {[%clk 0:03:02]}  Nge7 {[%clk 0:03:02]} 7. Kh1 {[%clk 0:03:01]}  O-O {[%clk 0:03:02]} 8. Qe1 {[%clk 0:03:02]}  d6 {[%clk 0:03:02]} 9. Qh4 {[%clk 0:03:02]}  b5 {[%clk 0:03:01]} 10. f5 {[%clk 0:02:39]}  exf5 {[%clk 0:02:52]} 11. Bh6 {[%clk 0:02:38]}  f6 {[%clk 0:02:48]} 12. Bxg7 {[%clk 0:02:30]}  Kxg7 {[%clk 0:02:49]} 13. Nbd2 {[%clk 0:02:31]}  Ne5 {[%clk 0:02:41]} 14. c3 {[%clk 0:02:21]}  g5 {[%clk 0:02:34]} 15. Qe1 {[%clk 0:02:20]}  N5g6 {[%clk 0:02:31]} 16. d4 {[%clk 0:02:13]}  fxe4 {[%clk 0:02:27]} 17. Nxe4 {[%clk 0:02:10]}  Bb7 {[%clk 0:02:27]} 18. Bxb5 {[%clk 0:02:03]}  Nf5 {[%clk 0:02:12]} 19. dxc5 {[%clk 0:01:59]}  dxc5 {[%clk 0:02:08]} 20. Nxc5 {[%clk 0:01:57]}  Qb6 {[%clk 0:01:55]} 21. Ne6+ {[%clk 0:01:56]}  Kh8 {[%clk 0:01:54]} 22. Nxf8 {[%clk 0:01:56]}  Rxf8 {[%clk 0:01:55]} 23. a4 {[%clk 0:01:27]}  g4 {[%clk 0:01:47]} 24. Nd4 {[%clk 0:01:22]}  Nxd4 {[%clk 0:01:27]} 25. cxd4 {[%clk 0:01:23]}  Qxd4 {[%clk 0:01:28]} 26. Qf2 {[%clk 0:01:23]}  Qb4 {[%clk 0:01:10]} 27. Rad1 {[%clk 0:01:14]}  a6 {[%clk 0:01:10]} 28. Rd4 {[%clk 0:01:09]}  Qc5 {[%clk 0:01:08]} 29. Bd3 {[%clk 0:01:06]}  Ne5 {[%clk 0:00:56]} 30. Be4 {[%clk 0:01:04]}  g3 {[%clk 0:00:36]} 31. hxg3 {[%clk 0:00:32]}  Ng4 {[%clk 0:00:36]} 32. Qf5 {[%clk 0:00:32]}  Qxf5 {[%clk 0:00:34]} 33. Rxf5 {[%clk 0:00:19]}  Re8 {[%clk 0:00:35]} 34. Rf4 {[%clk 0:00:18]}  f5 {[%clk 0:00:33]} 35. Rxg4 {[%clk 0:00:17]}  fxe4 {[%clk 0:00:31]} 36. Rf4 {[%clk 0:00:16]}  e3 {[%clk 0:00:32]} 37. Rf1 {[%clk 0:00:16]}  e2 {[%clk 0:00:32]} 38. Re1 {[%clk 0:00:16]}  a5 {[%clk 0:00:32]} 39. Kg1 {[%clk 0:00:16]}  Ba6 {[%clk 0:00:31]} 40. Kf2 {[%clk 0:00:17]}  Rf8+ {[%clk 0:00:32]} 41. Rf4 {[%clk 0:00:17]}  Rb8 {[%clk 0:00:32]} 42. b4 {[%clk 0:00:17]}  axb4 {[%clk 0:00:31]} 43. Rb1 {[%clk 0:00:17]}  b3 {[%clk 0:00:32]} 44. a5 {[%clk 0:00:16]}  b2 {[%clk 0:00:31]} 45. Rf6 {[%clk 0:00:15]}  Bd3 {[%clk 0:00:31]} 46. Rb6 {[%clk 0:00:08]}  Rf8+ {[%clk 0:00:28]} 47. Ke3 {[%clk 0:00:02]}  Bxb1 {[%clk 0:00:28]} 48. Kxe2 {[%clk 0:00:02]}  Re8+ {[%clk 0:00:27]} 49. Kd2 {[%clk 0:00:02]}  Be4 {[%clk 0:00:26]} 50. Rxb2 {[%clk 0:00:03]}  Bxg2 {[%clk 0:00:26]} 51. Ra2 {[%clk 0:00:03]}  Bf3 {[%clk 0:00:27]} 52. Ra3 {[%clk 0:00:03]}  Ba8 {[%clk 0:00:26]} 53. a6 {[%clk 0:00:04]}  Kg7 {[%clk 0:00:26]} 54. a7 {[%clk 0:00:05]}  Kg6 {[%clk 0:00:27]} 55. Ra4 {[%clk 0:00:05]}  Kg5 {[%clk 0:00:27]} 56. Rh4 {[%clk 0:00:04]}  h5 {[%clk 0:00:28]} 57. Rb4 {[%clk 0:00:04]}  Bf3 {[%clk 0:00:24]} 58. Rb8 {[%clk 0:00:04]}  Re2+ {[%clk 0:00:22]} 59. Kd3 {[%clk 0:00:04]}  Ra2 {[%clk 0:00:23]} 60. Rg8+ {[%clk 0:00:02]}  Kh6 {[%clk 0:00:23]} 61. Rh8+ {[%clk 0:00:02]}  Kg6 {[%clk 0:00:24]} 62. Rg8+ {[%clk 0:00:02]}  Kh7 {[%clk 0:00:25]} 63. Rg5 {[%clk 0:00:02]}  Rxa7 {[%clk 0:00:24]} 64. Ke3 {[%clk 0:00:03]}  Rf7 {[%clk 0:00:23]} 65. Re5 {[%clk 0:00:02]}  Bg4 {[%clk 0:00:23]} 66. Rc5 {[%clk 0:00:02]}  Rf3+ {[%clk 0:00:24]} 67. Ke4 {[%clk 0:00:03]}  Rxg3 {[%clk 0:00:25]} 68. Kf4 {[%clk 0:00:04]}  Rf3+ {[%clk 0:00:23]} 69. Kg5 {[%clk 0:00:05]}  Rf7 {[%clk 0:00:24]} 70. Rc6 {[%clk 0:00:05]}  Rg7+ {[%clk 0:00:24]} 71. Kh4 {[%clk 0:00:05]}  Bf3 {[%clk 0:00:24]} 72. Rc5 {[%clk 0:00:06]}  Rg4+ {[%clk 0:00:24]} 73. Kxh5 {[%clk 0:00:07]}  Rc4+ {[%clk 0:00:24]} 0-1


[Site "https://www.chess.com"]

[Event "Titled Tuesday Blitz January 25 2022"]
[White "Ronka, Erik"]
[Black "Golubka, Petro"]
[WhiteFideId "505080"]
[BlackFideId "14114224"]
[WhiteElo "2264"]
[BlackElo "2392"]
[Result "0-1"]
[Round "02"]
[TimeControl "180+1"]
[Date "2022.01.26"]
[WhiteClock "0:00:02"]
[BlackClock "0:00:24"]

1. d4 {[%clk 0:03:00]}  d5 {[%clk 0:02:54]} 2. Nf3 {[%clk 0:03:01]}  Nf6 {[%clk 0:02:47]} 3. g3 {[%clk 0:03:01]}  e6 {[%clk 0:02:47]} 4. Bg2 {[%clk 0:03:02]}  Be7 {[%clk 0:02:48]} 5. O-O {[%clk 0:03:03]}  O-O {[%clk 0:02:49]} 6. c4 {[%clk 0:03:03]}  c6 {[%clk 0:02:50]} 7. Qc2 {[%clk 0:03:03]}  Nbd7 {[%clk 0:02:50]} 8. Nbd2 {[%clk 0:03:03]}  b6 {[%clk 0:02:49]} 9. e4 {[%clk 0:03:00]}  Bb7 {[%clk 0:02:48]} 10. e5 {[%clk 0:02:55]}  Ne8 {[%clk 0:02:47]} 11. cxd5 {[%clk 0:02:47]}  exd5 {[%clk 0:02:48]} 12. Qf5 {[%clk 0:02:43]}  Nc7 {[%clk 0:02:45]} 13. Re1 {[%clk 0:02:21]}  Ne6 {[%clk 0:02:43]} 14. Nf1 {[%clk 0:02:17]}  c5 {[%clk 0:02:41]} 15. Be3 {[%clk 0:02:11]}  Rc8 {[%clk 0:02:37]} 16. h4 {[%clk 0:02:10]}  cxd4 {[%clk 0:02:14]} 17. Nxd4 {[%clk 0:02:09]}  Ndc5 {[%clk 0:02:14]} 18. Rad1 {[%clk 0:02:00]}  Qe8 {[%clk 0:02:11]} 19. b3 {[%clk 0:01:48]}  a5 {[%clk 0:02:07]} 20. Nh2 {[%clk 0:01:47]}  Nxd4 {[%clk 0:01:41]} 21. Bxd4 {[%clk 0:01:36]}  Qd7 {[%clk 0:01:31]} 22. Qxd7 {[%clk 0:00:55]}  Nxd7 {[%clk 0:01:32]} 23. Bh3 {[%clk 0:00:56]}  Rc7 {[%clk 0:01:28]} 24. Bxd7 {[%clk 0:00:52]}  Rxd7 {[%clk 0:01:29]} 25. Bxb6 {[%clk 0:00:53]}  Bb4 {[%clk 0:01:26]} 26. Re3 {[%clk 0:00:48]}  d4 {[%clk 0:01:23]} 27. Red3 {[%clk 0:00:30]}  Rc8 {[%clk 0:01:18]} 28. Nf3 {[%clk 0:00:26]}  Bxf3 {[%clk 0:00:57]} 29. Rxf3 {[%clk 0:00:26]}  Rc2 {[%clk 0:00:57]} 30. Rfd3 {[%clk 0:00:19]}  Rxa2 {[%clk 0:00:53]} 31. Rxd4 {[%clk 0:00:19]}  Rxd4 {[%clk 0:00:53]} 32. Rxd4 {[%clk 0:00:20]}  h5 {[%clk 0:00:53]} 33. Rd5 {[%clk 0:00:14]}  Kh7 {[%clk 0:00:49]} 34. Kg2 {[%clk 0:00:14]}  Kg6 {[%clk 0:00:49]} 35. Rb5 {[%clk 0:00:13]}  Kf5 {[%clk 0:00:47]} 36. Bc5 {[%clk 0:00:13]}  Bc3 {[%clk 0:00:41]} 37. Bb6 {[%clk 0:00:10]}  Ke6 {[%clk 0:00:40]} 38. Kf3 {[%clk 0:00:09]}  g6 {[%clk 0:00:40]} 39. Rc5 {[%clk 0:00:06]}  Bb4 {[%clk 0:00:35]} 40. Rb5 {[%clk 0:00:07]}  Ra3 {[%clk 0:00:33]} 41. Bc5 {[%clk 0:00:07]}  Rxb3+ {[%clk 0:00:33]} 42. Kg2 {[%clk 0:00:06]}  Rb2 {[%clk 0:00:30]} 43. Bb6 {[%clk 0:00:06]}  a4 {[%clk 0:00:25]} 44. Bc5 {[%clk 0:00:04]}  Bc3 {[%clk 0:00:24]} 45. Bb4 {[%clk 0:00:02]}  Rxb4 {[%clk 0:00:23]} 46. Rxb4 {[%clk 0:00:02]}  Bxb4 {[%clk 0:00:24]} 0-1


[Site "https://www.chess.com"]

[Event "Titled Tuesday Blitz January 25 2022"]
[White "Sadovsky, Artem"]
[Black "Boros, Denes"]
[WhiteFideId "4155840"]
[BlackFideId "722340"]
[WhiteElo "2369"]
[BlackElo "2464"]
[Result "1-0"]
[Round "02"]
[TimeControl "180+1"]
[Date "2022.01.26"]
[WhiteClock "0:01:41"]
[BlackClock "0:02:05"]

1. Nf3 {[%clk 0:03:00]}  g6 {[%clk 0:03:00]} 2. e4 {[%clk 0:02:55]}  Bg7 {[%clk 0:03:01]} 3. d4 {[%clk 0:02:55]}  d5 {[%clk 0:03:01]} 4. e5 {[%clk 0:02:47]}  c5 {[%clk 0:03:00]} 5. c3 {[%clk 0:02:42]}  Nc6 {[%clk 0:02:56]} 6. dxc5 {[%clk 0:02:29]}  Nxe5 {[%clk 0:02:52]} 7. Nxe5 {[%clk 0:02:26]}  Bxe5 {[%clk 0:02:53]} 8. Bb5+ {[%clk 0:02:26]}  Bd7 {[%clk 0:02:52]} 9. Qxd5 {[%clk 0:01:41]}  Bxb5 {[%clk 0:02:33]} 10. Qxe5 {[%clk 0:01:41]}  Qd3 {[%clk 0:02:14]} 11. Na3 {[%clk 0:01:42]}  O-O-O {[%clk 0:02:05]} 12. Bf4 {[%clk 0:01:41]} 1-0


[Site "https://www.chess.com"]

[Event "Titled Tuesday Blitz January 25 2022"]
[White "Seemann, Jakub"]
[Black "Sapunov, Evgeny"]
[WhiteFideId "21874697"]
[BlackFideId "4126661"]
[WhiteElo "2003"]
[BlackElo "2470"]
[Result "0-1"]
[Round "02"]
[TimeControl "180+1"]
[Date "2022.01.26"]
[WhiteClock "0:00:08"]
[BlackClock "0:01:56"]

1. e4 {[%clk 0:03:00]}  c5 {[%clk 0:02:59]} 2. Nf3 {[%clk 0:03:00]}  d6 {[%clk 0:03:00]} 3. Bb5+ {[%clk 0:03:00]}  Nd7 {[%clk 0:02:59]} 4. c3 {[%clk 0:02:58]}  Nf6 {[%clk 0:02:58]} 5. Bd3 {[%clk 0:02:58]}  a6 {[%clk 0:02:57]} 6. Bc2 {[%clk 0:02:56]}  b5 {[%clk 0:02:57]} 7. d4 {[%clk 0:02:56]}  e6 {[%clk 0:02:55]} 8. O-O {[%clk 0:02:56]}  Bb7 {[%clk 0:02:55]} 9. Re1 {[%clk 0:02:56]}  Be7 {[%clk 0:02:56]} 10. Nbd2 {[%clk 0:02:54]}  O-O {[%clk 0:02:56]} 11. Nf1 {[%clk 0:02:54]}  Re8 {[%clk 0:02:56]} 12. Ng3 {[%clk 0:02:53]}  Qc7 {[%clk 0:02:54]} 13. Be3 {[%clk 0:02:48]}  Rac8 {[%clk 0:02:54]} 14. Rc1 {[%clk 0:02:48]}  Qb8 {[%clk 0:02:54]} 15. h3 {[%clk 0:02:48]}  Qa8 {[%clk 0:02:54]} 16. Nd2 {[%clk 0:02:39]}  cxd4 {[%clk 0:02:53]} 17. cxd4 {[%clk 0:02:40]}  Nf8 {[%clk 0:02:48]} 18. Qe2 {[%clk 0:02:29]}  Qb8 {[%clk 0:02:44]} 19. Bb1 {[%clk 0:02:28]}  Rxc1 {[%clk 0:02:44]} 20. Rxc1 {[%clk 0:02:28]}  Rc8 {[%clk 0:02:44]} 21. Rd1 {[%clk 0:02:24]}  Qc7 {[%clk 0:02:42]} 22. Nf3 {[%clk 0:02:20]}  Ng6 {[%clk 0:02:39]} 23. Qd2 {[%clk 0:02:13]}  d5 {[%clk 0:02:31]} 24. e5 {[%clk 0:02:13]}  Ne4 {[%clk 0:02:31]} 25. Nxe4 {[%clk 0:02:08]}  dxe4 {[%clk 0:02:32]} 26. Ng5 {[%clk 0:02:05]}  Bxg5 {[%clk 0:02:29]} 27. Bxg5 {[%clk 0:02:06]}  h6 {[%clk 0:02:26]} 28. Be3 {[%clk 0:02:05]}  Bd5 {[%clk 0:02:26]} 29. Qb4 {[%clk 0:01:58]}  Qb6 {[%clk 0:02:22]} 30. Rc1 {[%clk 0:01:38]}  Rxc1+ {[%clk 0:02:13]} 31. Bxc1 {[%clk 0:01:39]}  a5 {[%clk 0:02:14]} 32. Qc5 {[%clk 0:01:31]}  Qxc5 {[%clk 0:02:14]} 33. dxc5 {[%clk 0:01:32]}  Nxe5 {[%clk 0:02:14]} 34. b3 {[%clk 0:01:20]}  Nc6 {[%clk 0:02:09]} 35. Kf1 {[%clk 0:01:12]}  e5 {[%clk 0:02:09]} 36. Ke2 {[%clk 0:01:05]}  f5 {[%clk 0:02:09]} 37. g4 {[%clk 0:01:03]}  f4 {[%clk 0:02:08]} 38. Bb2 {[%clk 0:01:03]}  Kf7 {[%clk 0:02:07]} 39. Kd2 {[%clk 0:00:50]}  Ke6 {[%clk 0:02:07]} 40. Bc2 {[%clk 0:00:37]}  Nd4 {[%clk 0:02:01]} 41. Bc3 {[%clk 0:00:24]}  b4 {[%clk 0:02:00]} 42. Bb2 {[%clk 0:00:23]}  Kd7 {[%clk 0:01:59]} 43. Bxd4 {[%clk 0:00:16]}  exd4 {[%clk 0:01:59]} 44. f3 {[%clk 0:00:17]}  e3+ {[%clk 0:01:56]} 45. Ke2 {[%clk 0:00:17]}  Kc6 {[%clk 0:01:55]} 46. Bd3 {[%clk 0:00:18]}  Kxc5 {[%clk 0:01:55]} 47. h4 {[%clk 0:00:18]}  g5 {[%clk 0:01:55]} 48. hxg5 {[%clk 0:00:18]}  hxg5 {[%clk 0:01:56]} 49. Bc2 {[%clk 0:00:18]}  Bc6 {[%clk 0:01:56]} 50. Be4 {[%clk 0:00:08]}  Bxe4 {[%clk 0:01:54]} 51. Kd1 {[%clk 0:00:09]}  Bxf3+ {[%clk 0:01:54]} 52. Kc1 {[%clk 0:00:07]}  Be4 {[%clk 0:01:55]} 53. a4 {[%clk 0:00:08]}  d3 {[%clk 0:01:55]} 54. Kb2 {[%clk 0:00:09]}  Kd4 {[%clk 0:01:55]} 55. Kc1 {[%clk 0:00:07]}  Kc3 {[%clk 0:01:55]} 56. Kb1 {[%clk 0:00:06]}  f3 {[%clk 0:01:55]} 57. Ka2 {[%clk 0:00:07]}  f2 {[%clk 0:01:55]} 58. Kb1 {[%clk 0:00:08]}  f1=Q+ {[%clk 0:01:55]} 59. Ka2 {[%clk 0:00:09]}  Qe2+ {[%clk 0:01:55]} 60. Ka1 {[%clk 0:00:08]}  Qb2# {[%clk 0:01:56]} 0-1


[Site "https://www.chess.com"]

[Event "Titled Tuesday Blitz January 25 2022"]
[White "Shipov, Sergei"]
[Black "Kislov, Oleg"]
[WhiteFideId "4113624"]
[BlackFideId "13503774"]
[WhiteElo "2773"]
[BlackElo "2252"]
[Result "1-0"]
[Round "02"]
[TimeControl "180+1"]
[Date "2022.01.26"]
[WhiteClock "0:01:18"]
[BlackClock "0:00:35"]

1. d4 {[%clk 0:03:00]}  Nf6 {[%clk 0:02:54]} 2. c4 {[%clk 0:02:59]}  e6 {[%clk 0:02:52]} 3. Nc3 {[%clk 0:02:59]}  Bb4 {[%clk 0:02:49]} 4. Qc2 {[%clk 0:02:59]}  d5 {[%clk 0:02:49]} 5. a3 {[%clk 0:02:57]}  Be7 {[%clk 0:02:47]} 6. cxd5 {[%clk 0:02:57]}  exd5 {[%clk 0:02:47]} 7. Bg5 {[%clk 0:02:56]}  c6 {[%clk 0:02:46]} 8. e3 {[%clk 0:02:56]}  O-O {[%clk 0:02:45]} 9. Bd3 {[%clk 0:02:56]}  h6 {[%clk 0:02:45]} 10. Bh4 {[%clk 0:02:55]}  Re8 {[%clk 0:02:45]} 11. Nge2 {[%clk 0:02:52]}  Nbd7 {[%clk 0:02:42]} 12. O-O {[%clk 0:02:51]}  Nf8 {[%clk 0:02:42]} 13. f3 {[%clk 0:02:37]}  c5 {[%clk 0:02:37]} 14. Kh1 {[%clk 0:02:23]}  Be6 {[%clk 0:02:16]} 15. Bxf6 {[%clk 0:02:12]}  Bxf6 {[%clk 0:02:08]} 16. dxc5 {[%clk 0:02:12]}  Rc8 {[%clk 0:02:03]} 17. b4 {[%clk 0:02:12]}  b6 {[%clk 0:02:02]} 18. Ba6 {[%clk 0:02:12]}  Rc7 {[%clk 0:01:59]} 19. Nb5 {[%clk 0:02:12]}  Rce7 {[%clk 0:01:02]} 20. Nbd4 {[%clk 0:01:58]}  bxc5 {[%clk 0:01:00]} 21. bxc5 {[%clk 0:01:57]}  Qa5 {[%clk 0:00:58]} 22. Bd3 {[%clk 0:01:52]}  Rc7 {[%clk 0:00:58]} 23. Rac1 {[%clk 0:01:39]}  Rec8 {[%clk 0:00:57]} 24. c6 {[%clk 0:01:37]}  a6 {[%clk 0:00:49]} 25. Qc3 {[%clk 0:01:29]}  Qxc3 {[%clk 0:00:47]} 26. Rxc3 {[%clk 0:01:29]}  g5 {[%clk 0:00:43]} 27. Bxa6 {[%clk 0:01:27]}  Ra8 {[%clk 0:00:42]} 28. Bb7 {[%clk 0:01:27]}  Ra5 {[%clk 0:00:40]} 29. Rb1 {[%clk 0:01:24]}  Ng6 {[%clk 0:00:38]} 30. Rc2 {[%clk 0:01:18]}  Rxa3 {[%clk 0:00:35]} 31. Nb5 {[%clk 0:01:18]} 1-0


[Site "https://www.chess.com"]

[Event "Titled Tuesday Blitz January 25 2022"]
[White "Stankovic, Ivan G"]
[Black "De Silva, L M S T"]
[WhiteFideId "902837"]
[BlackFideId "9953698"]
[WhiteElo "2195"]
[BlackElo "1631"]
[Result "0-1"]
[Round "02"]
[TimeControl "180+1"]
[Date "2022.01.26"]
[WhiteClock "0:00:11"]
[BlackClock "0:00:48"]

1. e4 {[%clk 0:03:00]}  e5 {[%clk 0:03:00]} 2. d4 {[%clk 0:03:00]}  exd4 {[%clk 0:03:00]} 3. Qxd4 {[%clk 0:03:00]}  Nc6 {[%clk 0:03:00]} 4. Qe3 {[%clk 0:03:00]}  Nf6 {[%clk 0:03:01]} 5. Nc3 {[%clk 0:03:00]}  Bb4 {[%clk 0:03:01]} 6. Bd2 {[%clk 0:03:00]}  O-O {[%clk 0:03:02]} 7. O-O-O {[%clk 0:03:01]}  Re8 {[%clk 0:03:02]} 8. f3 {[%clk 0:03:00]}  d5 {[%clk 0:02:59]} 9. Qf2 {[%clk 0:02:59]}  dxe4 {[%clk 0:02:57]} 10. Bg5 {[%clk 0:02:59]}  Bd6 {[%clk 0:02:51]} 11. fxe4 {[%clk 0:02:52]}  Ng4 {[%clk 0:02:42]} 12. Qd2 {[%clk 0:02:51]}  f6 {[%clk 0:02:34]} 13. Bh4 {[%clk 0:02:24]}  Be6 {[%clk 0:02:33]} 14. h3 {[%clk 0:02:23]}  Nge5 {[%clk 0:02:33]} 15. Nf3 {[%clk 0:02:21]}  Qe7 {[%clk 0:02:23]} 16. Nd5 {[%clk 0:02:14]}  Qf7 {[%clk 0:02:23]} 17. Be2 {[%clk 0:02:03]}  Rad8 {[%clk 0:02:22]} 18. Rhf1 {[%clk 0:02:02]}  Ne7 {[%clk 0:02:16]} 19. Ng5 {[%clk 0:01:56]}  fxg5 {[%clk 0:02:01]} 20. Rxf7 {[%clk 0:01:56]}  Nxf7 {[%clk 0:02:01]} 21. Bxg5 {[%clk 0:01:47]}  Nxg5 {[%clk 0:01:47]} 22. Qxg5 {[%clk 0:01:47]}  Bxd5 {[%clk 0:01:42]} 23. exd5 {[%clk 0:01:43]}  Ng6 {[%clk 0:01:42]} 24. Qg4 {[%clk 0:01:30]}  Re7 {[%clk 0:01:38]} 25. Bb5 {[%clk 0:01:25]}  a6 {[%clk 0:01:37]} 26. Bd3 {[%clk 0:01:23]}  Ne5 {[%clk 0:01:36]} 27. Qh5 {[%clk 0:01:21]}  Nxd3+ {[%clk 0:01:32]} 28. Rxd3 {[%clk 0:01:16]}  Rde8 {[%clk 0:01:33]} 29. Qf3 {[%clk 0:01:01]}  Rf7 {[%clk 0:01:20]} 30. Qg4 {[%clk 0:00:54]}  Rf2 {[%clk 0:00:58]} 31. Kd1 {[%clk 0:00:21]}  Bf4 {[%clk 0:00:49]} 32. Qe6+ {[%clk 0:00:11]}  Rxe6 {[%clk 0:00:49]} 33. dxe6 {[%clk 0:00:11]}  Bd6 {[%clk 0:00:48]} 0-1


[Site "https://www.chess.com"]